bitfinex-derivatives/quotes_ETHF0:USTF0_20250309
["timestamp","ask_amount","ask_price","bid_price","bid_amount"]
[1741545761920,0.99421,2011.8,2011.7,0.61413285]
[1741545762226,0.99421,2011.8,2010.6,0.38972017]
[1741545762227,8.9764,2012.0,2011.1,3.2078]
[1741545762529,8.9764,2012.0,2010.5,2.949]
[1741545762530,0.99478,2010.7,2010.5,3.2078]
[1741545762728,3.2078,2011.2,2010.5,3.2078]
[1741545762920,4.20231,2011.2,2010.9,0.99463]
[1741545763128,0.99464,2011.0,2010.7,0.99474]
[1741545763333,3.2078,2011.2,2010.8,3.2078]
[1741545763827,3.2078,2011.2,2010.6,3.508]
[1741545764027,5.83,2011.5,2010.9,3.2078]
[1741545764330,3.2078,2011.9,2011.2,3.2078]
[1741545764520,3.78529,2012.1,2011.7,3.2078]
[1741545764719,2.7912,2012.1,2011.3,3.4466]
[1741545764925,2.7912,2012.1,2011.7,0.00745879]
[1741545764926,0.99421,2011.8,2011.7,0.00745879]
[1741545765427,0.99421,2011.8,2011.7,8.79e-06]
[1741545765629,3.2078,2011.9,2010.9,22.326]
[1741545765931,3.2078,2012.2,2011.4,3.2078]
[1741545766133,2.48443,2012.7,2011.7,3.2078]
[1741545766431,2.48479,2012.4,2011.5,3.503]
[1741545766632,3.2078,2012.3,2011.5,3.503]
[1741545766821,0.99421,2011.8,2011.7,0.00745879]
[1741545767334,0.99451,2011.2,2011.1,3.499]
[1741545767529,2.48568,2011.7,2010.9,22.326]
[1741545767733,2.6699,2011.7,2010.9,22.326]
[1741545767925,2.48602,2011.4,2010.7,3.2078]
[1741545768234,0.99452,2011.2,2010.9,0.99462]
[1741545768429,2.4859,2011.5,2010.8,0.00745879]
[1741545768633,0.99467,2010.9,2010.8,0.00745879]
[1741545768834,0.99461,2011.0,2010.8,1.00214879]
[1741545769031,0.99465,2010.9,2010.8,0.00745879]
[1741545769329,3.21525879,2011.1,2010.2,24.80743]
[1741545769537,3.21525879,2011.1,2010.4,3.2078]
[1741545769724,0.99479,2010.7,2010.4,0.99487]
[1741545769928,3.21525879,2011.1,2010.4,3.2078]
[1741545770128,0.00745879,2011.1,2010.4,3.2078]
[1741545770330,0.9947,2010.9,2010.6,0.99478]
[1741545770727,0.9948,2010.6,2010.5,0.00745879]
[1741545771032,1.00204879,2011.1,2010.8,0.99467]
[1741545771238,5.7624,2011.6,2011.0,4.2024]
[1741545771433,2.76255,2012.4,2012.1,0.99404]
[1741545771733,2.76255,2012.4,2011.9,3.2078]
[1741545771734,2.48479,2012.4,2011.9,3.2078]
[1741545771924,2.48479,2012.4,2011.1,8.98871486]
[1741545771925,2.7924,2012.5,2011.5,3.2078]
[1741545772130,3.2078,2012.4,2011.5,3.2078]
[1741545772338,3.2078,2012.4,2011.5,5.69369]
[1741545772536,2.7924,2012.5,2011.9,3.2078]
[1741545772537,0.99411,2012.0,2011.9,3.2078]
[1741545773031,0.00745879,2012.2,2011.7,0.00745879]
[1741545773234,0.99418,2011.9,2011.7,0.00745879]
[1741545773530,0.99421,2011.8,2011.7,0.00745879]
[1741545774434,0.00745879,2012.2,2011.7,0.00745879]
[1741545774639,0.99419,2011.9,2011.8,3.2078]
[1741545774837,0.99414,2012.0,2011.8,4.20198]
[1741545775040,0.99414,2012.0,2011.8,3.81745713]
[1741545775242,0.99414,2012.0,2011.9,0.60965713]
[1741545775435,0.99408,2012.1,2011.9,1.60380713]
[1741545775636,0.99411,2012.0,2011.9,0.60965713]
[1741545776534,0.99421,2011.8,2011.7,0.00745879]
[1741545776739,0.99446,2011.3,2011.2,3.2078]
[1741545776946,0.99443,2011.4,2011.2,3.2078]
[1741545777244,3.2078,2011.8,2011.2,3.2078]
[1741545777245,0.99446,2011.3,2011.2,3.2078]
[1741545777439,3.2078,2011.8,2011.2,3.2078]
[1741545777745,0.99446,2011.3,2011.2,3.2078]
[1741545777941,0.99442,2011.4,2011.2,4.20229]
[1741545778136,5.69338,2011.8,2011.2,3.2078]
[1741545778344,0.99446,2011.3,2011.2,3.2078]
[1741545779240,0.99456,2011.1,2011.0,0.00745879]
[1741545779438,5.69365,2011.6,2011.0,0.00745879]
[1741545779640,0.99456,2011.1,2011.0,0.00745879]
[1741545780341,2.6923,2011.5,2011.0,0.00745879]
[1741545780639,0.99456,2011.1,2011.0,3.21525879]
[1741545780843,0.99456,2011.1,2011.0,0.00745879]
[1741545781147,3.422,2011.3,2011.0,4.20983879]
[1741545781344,2.6923,2011.5,2011.0,3.21525879]
[1741545781847,5.1906,2012.1,2011.4,3.2078]
[1741545782045,0.00745879,2012.2,2012.1,0.99406]
[1741545782244,3.2078,2013.1,2012.6,0.99379]
[1741545782444,3.2078,2013.5,2012.9,3.2078]
[1741545782648,3.2078,2013.5,2012.3,3.2078]
[1741545782849,2.48358,2013.4,2012.3,3.2078]
[1741545783145,3.2078,2013.2,2012.1,3.427]
[1741545783542,0.00745879,2012.9,2012.4,0.00745879]
[1741545784042,3.21525879,2012.9,2012.4,0.00745879]
[1741545784250,0.00745879,2012.9,2012.4,3.21525879]
[1741545784443,0.99386,2012.5,2012.4,0.00745879]
[1741545784845,0.9942,2011.9,2011.4,3.2078]
[1741545785139,1.7686,2012.5,2011.7,3.2078]
[1741545785346,3.433,2012.6,2011.8,3.2078]
[1741545785543,3.433,2012.6,2012.0,0.9941]
[1741545785544,0.99399,2012.3,2012.0,0.9941]
[1741545785750,0.99399,2012.3,2012.0,0.99409]
[1741545785944,0.99399,2012.3,2011.5,5.9189]
[1741545785945,1.00138879,2012.4,2012.1,4.20183]
[1741545786342,0.00745879,2012.4,2012.3,0.99396]
[1741545786544,0.99365,2013.0,2012.7,0.99374]
[1741545786739,8.0175,2013.6,2012.9,3.2078]
[1741545786947,0.99343,2013.4,2013.2,3.2078]
[1741545787149,1.7686,2014.0,2013.2,3.2078]
[1741545787445,3.2078,2014.1,2013.5,3.2078]
[1741545787651,2.8029,2014.3,2013.8,3.2078]
[1741545787850,0.00745879,2014.0,2013.9,0.99317]
[1741545788152,0.99295,2014.4,2013.8,3.2078]
[1741545788340,0.99295,2014.4,2014.1,3.2078]
[1741545788546,3.2078,2015.0,2014.1,3.2078]
[1741545788746,2.8029,2015.1,2014.8,3.2078]
[1741545789054,2.8029,2015.1,2014.5,3.2078]
[1741545789242,2.48158,2015.0,2014.5,3.2078]
[1741545789446,3.2078,2015.0,2014.7,0.00745879]
[1741545789641,0.0073962,2015.2,2014.7,4.20800879]
[1741545789946,0.99261,2015.1,2014.7,3.21525879]
[1741545790143,0.0073962,2015.2,2014.7,0.00745879]
[1741545790546,0.0073962,2015.2,2014.7,3.21525879]
[1741545790747,0.0073962,2015.2,2015.1,0.99258]
[1741545790943,0.99271,2014.9,2014.7,3.21525879]
[1741545791144,0.0073962,2015.2,2014.7,3.21525879]
[1741545791349,0.0073962,2015.2,2015.1,4.20038]
[1741545791544,6.2e-06,2015.2,2015.1,7.66338]
[1741545791748,3.2078,2016.2,2015.1,11.1676]
[1741545791951,0.99231,2015.7,2015.4,3.2078]
[1741545792156,2.48023,2016.1,2015.4,3.2078]
[1741545792360,3.466,2016.0,2015.0,3.2078]
[1741545792650,3.466,2016.0,2015.3,3.2078]
[1741545792651,3.2078,2015.8,2015.3,3.2078]
[1741545792857,3.466,2016.0,2015.3,3.2078]
[1741545793155,9.0256,2016.6,2015.7,3.2078]
[1741545793651,3.2078,2017.1,2016.2,3.2078]
[1741545793855,0.99194,2016.4,2016.0,3.2078]
[1741545794046,3.2078,2017.1,2016.0,3.2078]
[1741545794249,5.68726,2016.8,2016.0,3.2078]
[1741545794451,5.68726,2016.8,2015.9,3.21523992]
[1741545794452,0.99214,2016.0,2015.9,3.21523992]
[1741545794649,4.19994,2016.0,2015.9,9.92e-06]
[1741545794849,4.19994,2016.0,2015.4,3.2078]
[1741545794850,7.2078,2016.0,2014.9,3.2078]
[1741545795054,0.99278,2014.7,2014.5,3.2078]
[1741545795253,3.473,2015.5,2014.8,0.99271]
[1741545795450,3.473,2015.5,2015.0,3.2078]
[1741545795645,2.48109,2015.4,2014.6,3.2078]
[1741545795850,3.2078,2015.1,2014.2,3.471]
[1741545796057,3.2078,2015.4,2014.9,3.2078]
[1741545796254,0.00737703,2015.2,2014.9,3.2078]
[1741545796753,0.00737703,2015.2,2015.0,0.99261]
[1741545796951,0.00737703,2015.2,2014.9,3.2078]
[1741545797256,0.00737703,2015.2,2015.1,0.99258]
[1741545797454,0.00737703,2015.2,2015.1,4.46858]
[1741545797751,0.00737703,2015.2,2014.9,3.2078]
[1741545797960,0.99263,2015.0,2014.9,3.2078]
[1741545798255,0.00737703,2015.2,2014.9,3.2078]
[1741545798454,0.00737703,2015.2,2014.8,0.00743992]
[1741545798753,0.99268,2014.9,2014.8,0.00743992]
[1741545798958,0.99268,2014.9,2014.8,9.92e-06]
[1741545799264,2.48878703,2015.2,2014.5,3.2078]
[1741545799458,5.6894,2015.0,2014.2,3.2078]
[1741545799659,0.99298,2014.3,2014.2,3.2078]
[1741545799957,3.475,2014.9,2014.2,3.2078]
[1741545800255,0.99298,2014.3,2014.2,3.2078]
[1741545801557,0.99307,2014.1,2014.0,0.00743992]
[1741545801863,3.2078,2014.3,2013.5,3.2078]
[1741545801864,0.99332,2013.6,2013.5,3.2078]
[1741545802161,2.48308,2013.8,2013.1,3.2078]
[1741545802354,3.2078,2013.7,2013.1,3.2078]
[1741545802849,10.6165,2013.9,2013.1,4.20135]
[1741545803056,0.00743992,2013.6,2013.5,3.2078]
[1741545803457,0.00743992,2013.6,2013.2,0.00743992]
[1741545803757,0.99347,2013.3,2013.2,0.00743992]
[1741545804162,0.99381,2012.6,2012.5,25.4878]
[1741545804359,0.99381,2012.6,2012.5,3.2078]
[1741545804564,4.97418992,2013.6,2012.2,3.2078]
[1741545804565,0.99396,2012.3,2012.2,3.2078]
[1741545804754,5.2276,2013.2,2012.2,3.2078]
[1741545804755,3.2078,2013.1,2012.2,3.2078]
[1741545805061,0.99386,2012.5,2012.4,3.2078]
[1741545805363,0.99386,2012.5,2012.4,3.21523992]
[1741545805761,0.99386,2012.5,2012.4,0.00743992]
[1741545805968,3.452,2012.7,2011.8,3.2078]
[1741545806152,3.2078,2012.5,2011.5,3.2078]
[1741545806357,3.452,2012.7,2012.3,3.2078]
[1741545806557,0.99395,2012.4,2012.0,4.20189]
[1741545806859,3.452,2012.7,2012.3,3.2078]
[1741545807058,3.452,2012.7,2011.9,3.2078]
[1741545807258,0.99391,2012.4,2012.3,0.00743992]
[1741545807663,0.99391,2012.4,2012.3,9.92e-06]
[1741545807861,4.99391,2012.4,2012.3,9.92e-06]
[1741545809066,6.76251,2012.4,2012.3,9.92e-06]
[1741545809668,0.99441,2011.4,2011.3,3.2078]
[1741545810064,2.48563,2011.8,2010.9,3.2078]
[1741545810265,0.99452,2011.2,2010.9,3.2078]
[1741545810467,0.99457,2011.1,2010.9,3.2078]
[1741545810766,0.9946,2011.0,2010.9,3.2078]
[1741545810960,0.0074586,2011.2,2010.8,0.00508513]
[1741545811359,0.0074586,2011.2,2011.1,0.99456]
[1741545811565,2.71651866,2012.5,2011.2,3.2078]
[1741545811868,13.1926,2013.6,2012.4,3.2078]
[1741545812064,9.9848,2013.6,2013.0,3.2078]
[1741545812371,0.99357,2013.1,2013.0,3.2078]
[1741545812573,15.67596,2013.6,2012.7,3.2078]
[1741545812766,15.67596,2013.6,2013.1,0.0074586]
[1741545812767,0.99352,2013.2,2013.1,0.0074586]
[1741545813264,0.99391,2012.4,2012.3,3.2078]
[1741545813667,5.2396,2013.2,2012.3,3.2078]
[1741545813668,1.7686,2013.2,2012.3,7.2078]
[1741545813868,0.99376,2012.7,2012.6,3.2078]
[1741545814066,1.7686,2013.2,2012.6,3.2078]
[1741545814274,0.99372,2012.8,2012.7,3.2078]
[1741545815175,6.6798,2013.4,2012.7,3.2078]
[1741545815176,3.472,2013.4,2012.7,3.2078]
[1741545815474,3.2078,2013.8,2012.7,3.2078]
[1741545815475,0.9937,2012.9,2012.7,3.2078]
[1741545815675,0.9937,2012.9,2012.8,3.2078]
[1741545816472,0.99386,2012.5,2012.4,3.21288513]
[1741545816675,0.99386,2012.5,2012.4,0.00508513]
[1741545817165,5.69198,2012.9,2012.4,0.00508513]
[1741545817166,0.99382,2012.6,2012.4,0.00508513]
[1741545817363,5.93966,2013.4,2012.6,0.99379]
[1741545817571,2.48368,2013.3,2012.6,0.99381]
[1741545817769,2.48368,2013.3,2012.4,3.21288513]
[1741545817972,3.2078,2013.2,2012.4,3.21288513]
[1741545818170,0.99372,2012.8,2012.6,0.99378]
[1741545818372,0.99372,2012.8,2012.7,3.2078]
[1741545818676,6.6638,2013.4,2012.7,3.2078]
[1741545818877,0.99364,2013.0,2012.8,0.99369]
[1741545819172,1.0008486,2013.5,2013.3,0.99347]
[1741545819376,0.0074586,2013.5,2013.3,4.20123]
[1741545819568,0.99342,2013.4,2013.3,3.2078]
[1741545820172,0.0074586,2013.5,2013.3,4.20126]
[1741545820375,0.99342,2013.4,2013.3,3.2078]
[1741545820878,0.0074586,2013.5,2013.3,3.2078]
[1741545821074,3.2078,2014.5,2013.5,2.48341]
[1741545821278,0.99285,2014.6,2014.3,0.99296]
[1741545821490,4.20056,2014.8,2014.2,3.2078]
[1741545821779,3.2078,2014.8,2014.2,3.2078]
[1741545821976,3.2078,2014.8,2014.0,3.451]
[1741545822175,0.99307,2014.1,2014.0,3.451]
[1741545822377,0.99298,2014.3,2014.2,0.0074586]
[1741545822578,0.99298,2014.3,2014.2,8.6e-06]
[1741545822973,8.43298,2014.3,2014.2,8.6e-06]
[1741545823485,4.43298,2014.3,2014.2,8.6e-06]
[1741545823872,8.43298,2014.3,2014.2,8.6e-06]
[1741545824077,4.43298,2014.3,2014.2,8.6e-06]
[1741545824773,3.44,2014.3,2014.2,8.6e-06]
[1741545824975,0.99298,2014.3,2014.2,8.6e-06]
[1741545825179,3.2078,2014.5,2014.2,8.6e-06]
[1741545825380,0.99298,2014.3,2014.2,8.6e-06]
[1741545825682,0.9929,2014.5,2014.3,0.99296]
[1741545825880,0.9929,2014.5,2014.2,8.6e-06]
[1741545825881,0.0074586,2014.6,2014.4,3.2078]
[1741545826178,0.0074586,2014.6,2014.5,0.99288]
[1741545826976,0.0074586,2014.6,2014.4,3.2078]
[1741545827377,0.0074586,2014.6,2014.4,4.2007]
[1741545827580,1.0003086,2014.6,2014.4,3.2078]
[1741545827885,0.99288,2014.5,2014.4,3.2078]
[1741545828286,0.0074586,2014.6,2014.2,8.6e-06]
[1741545828488,0.99298,2014.3,2014.2,8.6e-06]
[1741545830490,4.99298,2014.3,2014.2,8.6e-06]
[1741545830790,6.76158,2014.3,2014.2,8.6e-06]
[1741545831092,9.36178,2014.3,2014.2,8.6e-06]
[1741545831287,5.36178,2014.3,2014.2,8.6e-06]
[1741545831495,9.36178,2014.3,2014.2,8.6e-06]
[1741545832596,6.76158,2014.3,2014.2,8.6e-06]
[1741545832889,4.37798,2014.3,2014.2,8.6e-06]
[1741545833086,0.99298,2014.3,2014.2,8.6e-06]
[1741545834389,5.1570586,2014.6,2014.2,8.6e-06]
[1741545834591,0.99298,2014.3,2014.2,8.6e-06]
[1741545835692,4.99298,2014.3,2014.2,8.6e-06]
[1741545836088,0.99298,2014.3,2014.2,8.6e-06]
[1741545836291,0.0074586,2014.6,2014.2,8.6e-06]
[1741545836487,0.99264,2015.0,2014.8,0.99269]
[1741545836688,1.7686,2015.5,2014.7,0.99274]
[1741545836994,0.99251,2015.3,2014.6,3.2078]
[1741545837199,7.571,2015.8,2015.0,3.2078]
[1741545837390,0.99258,2015.1,2015.0,3.2078]
[1741545837787,0.99275,2014.8,2014.7,3.2078]
[1741545837991,3.2152586,2015.6,2014.7,3.2078]
[1741545837992,5.68912,2015.3,2014.7,3.2078]
[1741545838292,0.99273,2014.8,2014.7,3.2078]
[1741545838492,6.5738,2015.4,2014.4,3.2078]
[1741545838688,6.5738,2015.4,2014.1,3.2078]
[1741545838689,0.99298,2014.3,2014.1,3.2078]
[1741545839094,9.05056,2014.9,2014.1,3.2078]
[1741545839095,0.0074586,2014.5,2014.1,3.2078]
[1741545839393,3.2078,2015.2,2014.4,3.2078]
[1741545839790,0.99273,2014.8,2014.7,3.2078]
[1741545839989,0.99273,2014.8,2014.4,3.2078]
[1741545840191,3.2078,2015.2,2014.4,3.2078]
[1741545840391,3.36,2015.4,2015.0,3.2078]
[1741545840595,0.99252,2015.3,2015.0,4.20041]
[1741545840798,0.99258,2015.1,2015.0,3.2078]
[1741545841099,0.0074586,2015.4,2015.0,3.2078]
[1741545841400,0.99252,2015.3,2015.0,4.2004]
[1741545841599,0.99256,2015.2,2015.0,3.2078]
[1741545841991,0.9925,2015.3,2015.0,3.2078]
[1741545842192,0.99252,2015.3,2015.0,4.2004]
[1741545842397,0.0074586,2015.4,2015.3,0.99248]
[1741545842698,5.6881,2016.1,2015.3,0.99248]
[1741545842699,5.6881,2016.1,2015.4,0.99241]
[1741545842997,0.99214,2016.0,2015.8,0.99224]
[1741545843202,0.99214,2016.0,2015.7,3.2078]
[1741545843203,3.2078,2016.1,2015.7,3.2078]
[1741545843496,0.99196,2016.4,2016.1,0.99206]
[1741545843689,0.0074586,2016.1,2016.0,3.2078]
[1741545843897,0.0074586,2016.1,2016.0,4.19994]
[1741545844098,3.2078,2016.7,2016.2,0.99203]
[1741545844099,0.99194,2016.5,2016.2,0.99203]
[1741545844299,0.99196,2016.4,2016.1,4.33605]
[1741545844604,7.45561,2017.0,2016.1,3.344]
[1741545844896,0.9919,2016.5,2016.2,0.99201]
[1741545845094,7.45561,2017.0,2016.2,3.2078]
[1741545845288,0.99199,2016.3,2016.2,3.2078]
[1741545845490,5.83112992,2016.6,2015.8,6.1568]
[1741545845693,3.35143992,2016.6,2015.8,6.1568]
[1741545845896,0.00743992,2016.6,2016.1,3.2078]
[1741545846095,0.00743992,2016.6,2016.5,3.2078]
[1741545846293,0.99927992,2016.6,2016.5,3.2078]
[1741545847100,9.69491992,2016.6,2015.8,9.4998]
[1741545847295,0.99204,2016.2,2016.1,3.2078]
[1741545847496,2.47986,2016.4,2015.8,6.292]
[1741545847803,0.99219,2015.9,2015.8,6.292]
[1741545848002,2.47986,2016.4,2015.7,3.2152586]
[1741545848003,0.99224,2015.8,2015.7,3.2152586]
[1741545848198,2.47991,2016.4,2015.7,3.2152586]
[1741545848506,0.99204,2016.2,2016.1,3.2078]
[1741545848799,2.48004,2016.3,2015.7,3.2152586]
[1741545849002,2.48004,2016.3,2015.7,4.2075086]
[1741545849303,2.47978,2016.5,2015.7,4.2075086]
[1741545849304,0.99224,2015.8,2015.7,3.2152586]
[1741545849695,3.2078,2015.8,2015.4,3.2078]
[1741545849896,0.99229,2015.7,2015.0,3.2078]
[1741545850097,0.99257,2015.2,2015.1,3.2078]
[1741545850295,3.2078,2015.8,2015.1,3.2078]
[1741545850296,5.68847,2015.8,2015.1,3.2078]
[1741545850501,0.99253,2015.2,2015.1,3.2078]
[1741545850708,5.68886,2015.5,2014.9,0.99268]
[1741545850901,0.99268,2014.9,2014.8,3.2078]
[1741545851606,0.99278,2014.7,2014.6,0.00743992]
[1741545851903,0.9927,2014.9,2014.6,0.00743992]
[1741545852108,0.9927,2014.9,2014.7,0.99276]
[1741545852301,2.48121,2015.3,2014.6,0.00743992]
[1741545852605,0.99278,2014.7,2014.6,0.00743992]
[1741545853896,6.5508,2014.9,2014.1,22.27]
[1741545854096,2.48219,2014.6,2014.0,0.99312]
[1741545854303,0.99304,2014.2,2014.0,0.99312]
[1741545854499,2.48195,2014.7,2013.9,3.2078]
[1741545855006,2.48195,2014.7,2013.9,4.20095]
[1741545855007,2.48208,2014.6,2013.9,4.20095]
[1741545855207,0.99307,2014.2,2014.1,0.00743992]
[1741545857308,3.2078,2014.2,2013.6,3.2078]
[1741545857616,0.99327,2013.7,2013.6,3.2078]
[1741545858606,9.0333,2014.3,2013.6,3.2078]
[1741545858607,3.2078,2014.3,2013.6,3.2078]
[1741545858813,0.00743992,2014.5,2014.2,3.2078]
[1741545859019,0.00743992,2014.5,2014.4,0.99293]
[1741545859315,0.99252,2015.3,2015.0,0.99259]
[1741545859512,0.99268,2014.9,2014.8,3.2078]
[1741545859707,2.6539,2015.4,2014.5,3.2078]
[1741545859908,0.99288,2014.5,2014.4,3.344]
[1741545860314,0.99298,2014.3,2014.2,3.21523992]
[1741545860517,0.99298,2014.3,2014.2,0.00743992]
[1741545860912,0.00743992,2014.7,2014.2,3.21523992]
[1741545861114,0.00743992,2014.7,2014.6,3.2078]
[1741545861631,0.00743992,2014.7,2014.6,4.20063]
[1741545861828,2.814,2015.5,2014.7,2.48195]
[1741545862131,2.5472,2016.1,2015.3,3.2078]
[1741545862330,2.6216,2016.3,2015.6,3.2078]
[1741545862536,2.6216,2016.3,2015.9,3.2078]
[1741545862721,2.6216,2016.3,2015.6,3.2078]
[1741545862929,0.99229,2015.7,2015.6,3.2078]
[1741545863425,2.62903992,2016.3,2015.6,3.2078]
[1741545863730,0.99229,2015.7,2015.4,0.00743992]
[1741545864038,0.99238,2015.5,2015.4,0.00743992]
[1741545864238,5.24063,2016.1,2015.4,0.99986992]
[1741545864535,2.7604,2016.1,2015.7,3.2078]
[1741545864736,0.99224,2015.8,2015.4,3.21523992]
[1741545864926,0.99221,2015.9,2015.6,0.99232]
[1741545865130,0.99218,2016.0,2015.7,4.20007]
[1741545865528,0.99211,2016.1,2015.8,0.9922]
[1741545865732,0.99207,2016.2,2015.9,0.99216]
[1741545865943,0.00743992,2016.3,2016.1,3.2078]
[1741545866133,0.99944992,2016.3,2016.1,3.2078]
[1741545866438,0.99204,2016.2,2016.1,3.2078]
[1741545866637,0.99223,2015.9,2015.7,0.37640761]
[1741545866934,0.99943992,2016.3,2016.1,0.99208]
[1741545867135,0.00743992,2016.3,2016.1,0.99208]
[1741545867334,0.00743992,2016.3,2016.2,0.99204]
[1741545867531,0.99186,2016.6,2016.0,3.2078]
[1741545867732,3.2078,2017.2,2016.3,3.2078]
[1741545867929,9.57077,2017.5,2017.1,3.2078]
[1741545867930,0.99152,2017.3,2017.1,3.2078]
[1741545868229,5.3236,2017.5,2017.2,3.2078]
[1741545868436,3.2078,2017.8,2017.2,3.2078]
[1741545868437,3.2078,2017.8,2017.4,0.99145]
[1741545868630,3.2078,2017.8,2017.3,0.99147]
[1741545868827,3.2078,2017.8,2017.2,3.2078]
[1741545868828,0.00743992,2017.6,2017.2,3.2078]
[1741545869029,0.00743992,2017.6,2017.4,0.99143]
[1741545869335,0.9915,2017.3,2017.2,3.2078]
[1741545869530,0.00743992,2017.6,2017.2,3.2078]
[1741545869731,0.99880992,2017.6,2017.2,3.2078]
[1741545870036,0.00743992,2017.6,2017.5,4.1992]
[1741545870229,0.99878992,2017.6,2017.5,3.2078]
[1741545870631,0.00743992,2017.6,2017.5,7.2078]
[1741545870827,8.24123,2018.3,2017.5,10.5488]
[1741545870828,5.7637,2018.3,2017.5,10.5488]
[1741545871125,5.16094,2018.6,2017.7,3.2078]
[1741545871325,2.6837,2018.6,2017.7,3.2078]
[1741545871628,0.99106,2018.2,2018.1,3.2078]
[1741545871935,2.6837,2018.6,2017.7,3.2078]
[1741545872130,2.47753,2018.3,2017.7,3.2078]
[1741545872335,0.99115,2018.0,2017.9,0.00743992]
[1741545872531,0.99125,2017.8,2017.7,3.2078]
[1741545872737,3.2078,2017.8,2017.1,3.341]
[1741545872930,0.99129,2017.8,2017.5,0.99138]
[1741545873130,0.99129,2017.8,2017.1,3.341]
[1741545873131,1.7686,2018.0,2017.7,3.2078]
[1741545873337,1.7686,2018.0,2017.4,3.2078]
[1741545873338,2.47789,2018.0,2017.4,3.2078]
[1741545873635,0.99132,2017.7,2017.5,0.00743992]
[1741545873839,3.2078,2018.2,2017.5,0.00743992]
[1741545874037,5.0583,2018.3,2017.7,3.2078]
[1741545874038,2.5807,2018.3,2017.7,3.2078]
[1741545874434,0.99123,2017.9,2017.7,3.2078]
[1741545874642,2.5807,2018.3,2017.7,3.2078]
[1741545874843,0.99125,2017.8,2017.7,3.2078]
[1741545875137,2.5807,2018.3,2017.7,3.2078]
[1741545875334,0.99135,2017.6,2017.5,0.00743992]
[1741545876132,9.0259,2017.9,2017.1,3.2078]
[1741545876333,2.47826,2017.7,2017.1,4.19937]
[1741545876629,0.99135,2017.6,2017.5,3.2078]
[1741545877234,0.99134,2017.7,2017.5,3.2078]
[1741545877433,5.05827,2018.3,2017.5,3.2078]
[1741545877434,8.39727,2018.3,2017.5,3.2078]
[1741545877838,0.99123,2017.9,2017.5,3.2078]
[1741545878134,2.47765,2018.2,2017.5,3.2078]
[1741545878336,5.9197,2018.3,2017.5,3.2078]
[1741545878537,0.99119,2018.0,2017.9,3.2078]
[1741545878737,0.99109,2018.2,2017.9,3.2078]
[1741545879034,5.7885,2018.3,2017.9,3.2078]
[1741545879540,0.9911,2018.2,2018.0,0.99114]
[1741545879739,0.00731239,2018.4,2017.9,3.2078]
[1741545880052,0.99115,2018.0,2017.9,3.2078]
[1741545880438,2.47796,2018.0,2017.3,6.55323992]
[1741545880645,0.99145,2017.4,2017.3,3.21523992]
[1741545880840,4.24657,2018.0,2017.3,3.21523992]
[1741545881045,0.99145,2017.4,2017.3,3.21523992]
[1741545881540,0.99145,2017.4,2017.3,0.00743992]
[1741545882844,4.19925,2017.4,2017.3,0.00743992]
[1741545883041,4.19925,2017.4,2017.3,9.92e-06]
[1741545883444,8.19925,2017.4,2017.3,9.92e-06]
[1741545883643,9.96785,2017.4,2017.3,9.92e-06]
[1741545883937,5.96785,2017.4,2017.3,9.92e-06]
[1741545884145,2.76005,2017.4,2017.3,9.92e-06]
[1741545884649,5.96785,2017.4,2017.3,9.92e-06]
[1741545885349,4.19925,2017.4,2017.3,9.92e-06]
[1741545885939,3.2078,2017.4,2017.3,9.92e-06]
[1741545886145,0.99144,2017.5,2017.3,9.92e-06]
[1741545886449,5.68573,2018.0,2017.3,9.92e-06]
[1741545886450,2.47793,2018.0,2017.4,3.2078]
[1741545886646,0.9914,2017.5,2017.4,3.2078]
[1741545886845,0.99145,2017.4,2017.3,9.92e-06]
[1741545888451,0.99145,2017.4,2017.3,3.20780992]
[1741545888852,2.47792,2018.0,2017.3,4.19927992]
[1741545889053,2.47792,2018.0,2017.3,3.20780992]
[1741545889054,0.9914,2017.5,2017.3,3.20780992]
[1741545889255,0.9914,2017.5,2017.3,4.19928992]
[1741545889456,0.9914,2017.5,2017.3,3.20780992]
[1741545889751,2.47792,2018.0,2017.3,3.20780992]
[1741545890052,6.5458,2018.1,2017.8,3.2078]
[1741545890354,0.99124,2017.9,2017.8,3.2078]
[1741545890655,2.7653,2018.2,2017.8,3.2078]
[1741545890842,0.99112,2018.1,2017.8,3.2078]
[1741545891047,0.99112,2018.1,2018.0,3.2078]
[1741545891244,3.61304,2018.3,2018.0,4.19894]
[1741545891548,0.99111,2018.1,2018.0,3.2078]
[1741545891852,2.622,2018.3,2018.0,3.2078]
[1741545892055,0.99111,2018.1,2018.0,3.2078]
[1741545892255,2.622,2018.3,2018.0,3.2078]
[1741545892451,0.9911,2018.2,2018.0,3.2078]
[1741545892652,0.99107,2018.2,2018.0,4.19894]
[1741545892857,0.99111,2018.1,2018.0,3.2078]
[1741545893150,0.00731239,2018.4,2018.0,3.2078]
[1741545893357,0.99091,2018.6,2018.3,0.99099]
[1741545893547,2.47703,2018.7,2018.0,3.2078]
[1741545893853,5.68496,2018.6,2018.1,0.62591955]
[1741545894058,0.99106,2018.2,2018.1,0.62591955]
[1741545894953,0.00743992,2018.4,2018.1,0.62591955]
[1741545895255,0.99106,2018.2,2018.1,0.62591955]
[1741545895455,6.5448,2018.3,2017.1,1.80841319]
[1741545895755,0.99145,2017.4,2017.2,0.99151]
[1741545895957,2.47806,2017.9,2017.2,0.99154]
[1741545896158,3.2078,2018.0,2017.3,0.99147]
[1741545896347,3.2078,2018.3,2017.8,3.2078]
[1741545896554,9.02185,2018.7,2017.8,3.2078]
[1741545896753,0.99107,2018.2,2018.0,0.99112]
[1741545897050,0.99105,2018.3,2017.8,3.21523992]
[1741545897251,3.337,2018.7,2017.8,3.21523992]
[1741545897450,2.47652,2019.2,2018.3,0.99101]
[1741545897654,0.99079,2018.8,2018.3,3.336]